Cogmind - Beta 12 X1 @@@ ROGUE MODE // 2022.07.04 @ 06:17:04 Player: youngster Result: Destroyed by D-53 Grenadier with Mini Grenade Launcher Performance ------------- Evolutions (0) 0 Regions Visited (4) 800 Robots Destroyed (33) 165 Value Destroyed (701) 701 Prototype IDs (14) 280 Alien Tech Used (0) 0 Bonus (21) 21 TOTAL SCORE: 1967 Bonus ------- Follower Combat Kills 21 Cogmind --------- Core Integrity 0/250 Matter 299/300 Energy 95/100 System Corruption 0% Temperature Cool (0) Movement Core (700) Ox13 Location -9/Mines Parts ------- > --- POWER (1) -------- (None) > --- PROPULSION (2) --- (None) > --- UTILITY (2) ------ High-capacity Storage Unit > --- WEAPON (2) ------- Light Assault Rifle > --- INVENTORY (20) --- Ion Engine Light Treads Light Treads Light Treads Compact Wheel Cooling System High-capacity Matter Pod (200) Seismic Detector Transport Network Coupler Propulsion Shielding Propulsion Shielding Shield Generator EM Pulse Gun Light Assault Rifle Rocket Launcher Datajack Blade Trap Blade Trap Blade Trap Peak State ------------ > --- POWER ------------ Light Ion Engine > --- PROPULSION ------- Light Treads Light Treads > --- UTILITY ---------- High-capacity Storage Unit Propulsion Shielding > --- WEAPON ----------- Small Laser Improved Light Cannon > --- INVENTORY -------- Ion Engine Light Treads Light Treads Light Treads Compact Wheel Cooling System High-capacity Matter Pod Seismic Detector Transport Network Coupler Propulsion Shielding Propulsion Shielding Shield Generator EM Pulse Gun Light Assault Rifle Light Assault Rifle Rocket Launcher Datajack Blade Trap Blade Trap Blade Trap [Rating: 10] Favorites ----------- Power Light Ion Engine Engine Light Ion Engine Propulsion Light Treads Treads Light Treads Utility High-capacity Storage Unit Device Shield Generator Storage High-capacity Storage Unit Protection Propulsion Shielding Weapon Assault Rifle Energy Gun Small Laser Ballistic Gun Assault Rifle Ballistic Cannon Improved Light Cannon Special Melee Weapon Datajack Build | -11 -10 -10 -10 -9 ------- Run | Scr Mat Min Exi Min Slots Evolved . | . . . . . Power . | . . . . . Propulsion . | . . . . . Utility . | . . . . . Weapon . | . . . . . Parts Attached 29 | 6 14 5 2 2 Power 5 | 1 2 2 . . Engine 5 | 1 2 2 . . Core . | . . . . . Reactor . | . . . . . Propulsion 6 | 2 4 . . . Treads 6 | 2 4 . . . Leg . | . . . . . Wheel . | . . . . . Hover . | . . . . . Flight . | . . . . . Utility 7 | 1 5 1 . . Device 3 | . 3 . . . Storage 2 | 1 1 . . . Processor . | . . . . . Hackware . | . . . . . Protection 2 | . 1 1 . . Artifact . | . . . . . Weapon 11 | 2 3 2 2 2 Energy Gun 4 | 1 . 2 1 . Energy Cannon . | . . . . . Ballistic Gun 5 | 1 3 . . 1 Ballistic Cannon 1 | . . . . 1 Launcher . | . . . . . Special Weapon . | . . . . . Impact Weapon . | . . . . . Slashing Weapon . | . . . . . Piercing Weapon . | . . . . . Special Melee Weapon 1 | . . . 1 . Unidentified Prototypes . | . . . . . Parts Lost 11 | . 2 3 . 6 Power 3 | . 1 1 . 1 Propulsion 2 | . . . . 2 Utility 1 | . . . . 1 Weapon 5 | . 1 2 . 2 Highest Loss Streak 6 | . 1 3 . 6 To Critical Strikes 1 | . . 1 . . Average Slot Usage (%) 98 | . 96 99 100 98 Engine 13 | . 13 13 14 13 Treads 27 | . 27 28 28 28 Device 3 | . 8 1 . . Storage 14 | . 14 14 14 14 Protection 9 | . 3 12 14 13 Energy Gun 15 | . 2 26 15 19 Ballistic Gun 10 | . 25 1 . . Special Melee Weapon 1 | . . . 12 . Naked Turns . | . . . . . Heaviest Build 51 | 14 51 50 47 49 Greatest Support 40 | 40 40 40 40 40 Greatest Overweight (x) 2 | . 2 1 1 1 Average Overweight (x) . | . . 1 1 1 Largest Inventory Capacity 20 | 8 20 20 20 20 Average Capacity 19 | 6 19 20 20 20 Most Carried 20 | 3 15 19 20 20 Average Carried 13 | 2 8 16 19 19 Final Capacity 20 | 8 20 20 20 20 Final Carried 19 | 3 15 19 19 19 Class Distribution -------------------- 100% | Mutant Dominant Class ---------------- Mutant | -10/Materials Mutant | -10/Mines Mutant | -10/Exiles Mutant | -9/Mines Resources | -11 -10 -10 -10 -9 ----------- Run | Scr Mat Min Exi Min Matter Collected 1016 | 115 796 75 20 10 Remotely . | . . . . . Salvage Created 948 | . 815 133 . . Parts 78 | . 61 17 . . Haulers Intercepted 1 | . 1 . . . Recyclers Shooed 5 | . 5 . . . Parts Field Recycled . | . . . . . Retrieved Matter . | . . . . . Parts Self-Destructed . | . . . . . Prevented . | . . . . . Kills | -11 -10 -10 -10 -9 ------- Run | Scr Mat Min Exi Min Combat Hostiles Destroyed 23 | . 15 8 . . Guns 23 | . 15 8 . . Classes Destroyed 8 | . 7 1 . . Worker 4 | . 2 2 . . Builder 2 | . 2 . . . Tunneler 1 | . 1 . . . Hauler 1 | . 1 . . . Operator 1 | . 1 . . . Watcher 1 | . 1 . . . Swarmer 8 | . . 8 . . Grunt 15 | . 15 . . . Best Kill Streak 3 | . 3 3 . . Combat Bots Only 3 | . 2 3 . . Max Kills in Single Turn 1 | . 1 1 . . Gunslinging . | . . . . . Exploded . | . . . . . Melee . | . . . . . Uniques/NPCs Destroyed . | . . . . . Combat | -11 -10 -10 -10 -9 -------- Run | Scr Mat Min Exi Min Damage Taken 1480 | . 603 371 . 506 Core 254 | . 102 23 . 129 Absorbed by Shields 78 | . 78 . . . Redirected to Shielding 58 | . 6 21 . 31 Regen/Repaired (Parts) 103 | . 103 . . . Core Remaining (%) 100 | 100 . . . . Volleys Fired 101 | . 72 26 . 3 Largest 2 | . 2 2 . 2 Hottest 80 | . 60 80 . 79 Shots Fired 200 | . 144 51 . 5 Gun 199 | . 144 51 . 4 Cannon 1 | . . . . 1 Launcher . | . . . . . Special . | . . . . . Kinetic 136 | . 118 15 . 3 Thermal 21 | . . 19 . 2 Explosive . | . . . . . Electromagnetic 43 | . 26 17 . . Robot Hit Streak 14 | . 14 4 . 4 Robot Miss Streak 7 | . 6 7 . 1 Penetration Max . | . . . . . Secondary Targets 1 | . 1 . . . Max Gunslinging Chain 1 | . 1 . . . Shots Hit Robots 114 | . 88 18 4 4 Core Hits 54 | . 41 11 . 2 Critical Kills . | . . . . . Critical Parts Destroyed . | . . . . . Critical Strikes . | . . . . . Melee Attacks 4 | . . . 4 . Impact . | . . . . . Slashing . | . . . . . Piercing . | . . . . . Sneak Attacks 4 | . . . 4 . Combat Hostiles . | . . . . . Follow-up Attacks . | . . . . . Damage Inflicted 1693 | . 1227 404 . 62 Guns 1409 | . 1151 226 . 32 Cannons 24 | . . . . 24 Explosions 189 | . 44 145 . . Melee . | . . . . . Ramming 71 | . 32 33 . 6 Kinetic 1007 | . 910 53 . 44 Thermal 318 | . 44 262 . 12 Explosive . | . . . . . Electromagnetic 297 | . 241 56 . . Impact . | . . . . . Slashing . | . . . . . Piercing . | . . . . . Highest Corruption . | . . . . . Average Corruption . | . . . . . Corruption Purged . | . . . . . Corruption Blocked . | . . . . . Overload Shots . | . . . . . Overflow Damage 18 | . . 18 . . Projectiles . | . . . . . Explosions 18 | . . 18 . . Melee . | . . . . . Knockbacks . | . . . . . Impact . | . . . . . Kinetic . | . . . . . Secondary . | . . . . . Self-Inflicted Damage . | . . . . . Shots . | . . . . . Rammed 19 | . 8 9 . 2 Targets Rammed 21 | . 9 10 . 2 Kicked . | . . . . . Crushed 2 | . 1 1 . . Highest Temperature 101 | . 83 101 . 10 Average Temperature 32 | . 30 38 . 4 Received Heat Transfer 323 | . 323 . . . Siege Activations . | . . . . . Robots Corrupted . | . . . . . Combat Hostiles . | . . . . . Parts Fried . | . . . . . Impact Corruptions 1 | . 1 . . . Robots Melted . | . . . . . Combat Hostiles . | . . . . . Parts Melted . | . . . . . Heat Transferred 550 | . 50 475 . 25 Parts Sabotaged . | . . . . . Parts Stolen . | . . . . . Parts Stripped . | . . . . . Power Chain Reactions 1 | . 1 . . . Missiles Intercepted . | . . . . . Alert | -11 -10 -10 -10 -9 ------- Run | Scr Mat Min Exi Min Peak Influence 258 | . 258 258 . . Initial 21 | . . 21 . . Average 68 | . 87 62 . . Maximum Alert Level 1 | . 1 1 . . Low Security (%) 94 | 100 96 91 . 100 Level 1 5 | . 3 8 . . Level 2 . | . . . . . Level 3 . | . . . . . Level 4 . | . . . . . Level 5 . | . . . . . High Security . | . . . . . Max Security . | . . . . . Squads Dispatched 5 | . 5 . . . Investigation 3 | . 3 . . . Extermination . | . . . . . Reinforcement 2 | . 2 . . . Assault . | . . . . . Garrison . | . . . . . Intercept . | . . . . . Searches Triggered . | . . . . . Construction Impeded . | . . . . . Haulers Reinforced . | . . . . . Active Scanning Responses . | . . . . . Cargo Convoy Interrupts . | . . . . . Stealth | -11 -10 -10 -10 -9 --------- Run | Scr Mat Min Exi Min Distress Signals 2 | . 2 . . . Communications Jammed . | . . . . . Distress Signals . | . . . . . Times Spotted 48 | . 23 13 . 12 Peak Tracking Total 10 | . 4 3 . 10 Tactical Retreats 2 | . 1 1 . . Traps | -11 -10 -10 -10 -9 ------- Run | Scr Mat Min Exi Min Traps Triggered 3 | . 3 . . . Indirectly . | . . . . . Trap Hack Attempts . | . . . . . Triggered . | . . . . . Disarmed . | . . . . . Reprogrammed . | . . . . . Reused . | . . . . . Traps Extracted . | . . . . . Installed . | . . . . . Triggered . | . . . . . Most Traps Carried 3 | . . 3 3 3 Machines | -11 -10 -10 -10 -9 ---------- Run | Scr Mat Min Exi Min Machines Disabled 3 | . . 3 . . Max in Single Turn 2 | . . 2 . . Machines Sabotaged . | . . . . . Garrisons Compromised . | . . . . . Overloaded Fab Kills . | . . . . . Hacking | -11 -10 -10 -10 -9 --------- Run | Scr Mat Min Exi Min Machines Accessed 8 | . 7 . 1 . Terminals 4 | . 4 . . . Fabricators . | . . . . . Repair Stations 1 | . 1 . . . Recycling Units 2 | . 2 . . . Scanalyzers . | . . . . . Garrison Access . | . . . . . Total Hacks 20 | . 19 . 1 . Successful 14 | . 13 . 1 . Failed 5 | . 5 . . . Catastrophic 1 | . 1 . . . Database Lockouts 1 | . 1 . . . Manual 11 | . 11 . . . Terminals 14 | . 14 . . . Fabricators . | . . . . . Repair Stations 2 | . 2 . . . Recycling Units 3 | . 3 . . . Scanalyzers . | . . . . . Garrison Access . | . . . . . Terminal Hacks 7 | . 6 . 1 . Record 1 | . . . 1 . Part Schematic 1 | . 1 . . . Robot Analysis 1 | . 1 . . . Branch Access Points 1 | . 1 . . . Emergency Access Points 1 | . 1 . . . Alert Level 1 | . 1 . . . Transport Status 1 | . 1 . . . Fabricator Hacks . | . . . . . Repair Station Hacks 2 | . 2 . . . Scan Component 1 | . 1 . . . Repair 1 | . 1 . . . Recycling Unit Hacks 1 | . 1 . . . Retrieve Components 1 | . 1 . . . Scanalyzer . | . . . . . Garrison Access Hacks . | . . . . . Unauthorized Hacks 4 | . 4 . . . Terminals 2 | . 2 . . . Botnet 1 | . 1 . . . Operators 1 | . 1 . . . Fabricators . | . . . . . Repair Stations . | . . . . . Recycling Units 2 | . 2 . . . Tunnel 2 | . 2 . . . Scanalyzers . | . . . . . Garrison Access . | . . . . . Data Cores Recovered . | . . . . . Used . | . . . . . Hacking Detections 6 | . 6 . . . Full Trace Events . | . . . . . Feedback Events . | . . . . . Feedback Blocked . | . . . . . Robot Schematics Acquired . | . . . . . Robots Built . | . . . . . Authchips . | . . . . . Time . | . . . . . Total Robot Build Rating . | . . . . . Part Schematics Acquired 1 | . 1 . . . Parts Built . | . . . . . Authchips . | . . . . . Time . | . . . . . Total Part Build Rating . | . . . . . Parts Repaired 1 | . 1 . . . Time 26 | . 26 . . . Parts Recycled . | . . . . . Recycled Matter . | . . . . . Retrieved Matter . | . . . . . Retrieved Components 10 | . 10 . . . Parts Scanalyzed . | . . . . . Part Schematics Acquired . | . . . . . Parts Damaged . | . . . . . Bothacking | -11 -10 -10 -10 -9 ------------ Run | Scr Mat Min Exi Min Used RIF Installer . | . . . . . Robots Hacked 4 | . . . 4 . Non-combat 3 | . . . 3 . Combat 1 | . . . 1 . Robot Hacks Applied 4 | . . . 4 . parse_system 4 | . . . 4 . Relay Couplers Released . | . . . . . Fabnet Peak Effective % . | . . . . . Robots Rewired . | . . . . . Allies Hacked . | . . . . . Hacks Repelled . | . . . . . Allies | -11 -10 -10 -10 -9 -------- Run | Scr Mat Min Exi Min Total Allies 4 | . . 3 . 1 Largest Group 3 | . . 3 2 3 Highest-Rated Group 63 | . . 40 32 63 Highest-Rated Ally 31 | . . 16 16 31 Total Orders . | . . . . . Ally Attacks 31 | . . 18 . 13 Total Damage 354 | . . 174 . 180 Kills 9 | . . 4 . 5 Allies Corrupted . | . . . . . Allies Melted . | . . . . . Intel | -11 -10 -10 -10 -9 ------- Run | Scr Mat Min Exi Min Robot Analysis Total 1 | . 1 . . . Derelict Logs Recovered 4 | . . 3 . 1 Drone Launches . | . . . . . Drone Recoveries . | . . . . . Exploration | -11 -10 -10 -10 -9 ------------- Run | Scr Mat Min Exi Min Turns Passed 4365 | 60 1788 1697 546 274 Spaces Moved 1650 | 32 631 657 224 106 Core 2 | 2 . . . . Treads 1648 | 30 631 657 224 106 Legs . | . . . . . Wheels . | . . . . . Hover . | . . . . . Flight . | . . . . . Fastest Speed 50 | 50 160 240 240 240 Average Speed 237 | 153 236 240 240 240 Slowest Speed 320 | 160 320 240 240 240 Overloaded Moves . | . . . . . Propulsion Burnouts . | . . . . . Robots Hopped . | . . . . . Cave-ins Triggered . | . . . . . Exploration Rate (%) 57 | 4 91 97 64 29 Regions Visited 4 Branch Regions 3 Pre-discovered Areas 4 | . 2 1 1 . Known Exits Taken 2 | . 1 . 1 . Unknown Exits Taken 2 | 1 . 1 . . Scrap Searched 2 | . . 1 . 1 Spaces Dug . | . . . . . Terrain Destroyed 13 | . 4 9 . . Melee . | . . . . . Projectile . | . . . . . AOE 13 | . 4 9 . . Terrain Rammed . | . . . . . Walls Destroyed . | . . . . . Machines Disabled . | . . . . . Actions | -11 -10 -10 -10 -9 --------- Run | Scr Mat Min Exi Min Total 1867 | 40 766 712 231 118 Wait 33 | . 23 8 . 2 Move 1646 | 31 630 656 223 106 Hop . | . . . . . Pick Up 24 | 3 12 6 1 2 Fast Attach 13 | 6 6 1 . . Attach 6 | . 3 2 . 1 Detach 2 | . 2 . . . Swap 10 | . 5 2 2 1 Drop 7 | . 4 1 1 1 Fire 101 | . 72 26 . 3 Melee 4 | . . . 4 . Ram . | . . . . . Kick . | . . . . . Crush 21 | . 9 10 . 2 Escape Stasis . | . . . . . Rewire . | . . . . . Trap . | . . . . . Miscellaneous . | . . . . . Route ------- -11/Scrapyard -10/Materials (discovered 4 exits: [*Mat x3] / *Min) -10/Mines (discovered 3 exits: [*Mat x2] / *Exi) -10/Exiles (discovered 2 exits: *Min x2) -9/Mines (discovered 1 exit: [*Mat]) History --------- Turn | Location | Event 34 | -11/Scrapyard | Discovered new exit (range 15) 61 | -11/Scrapyard | Entered Materials 73 | -10/Materials | Central database locked down 190 | -10/Materials | Discovered new exit (range 3) 309 | -10/Materials | Build established: Mutant 745 | -10/Materials | Identified exit to Mines 745 | -10/Materials | Discovered new exit (range 14) 1210 | -10/Materials | Discovered new exit (range 11) 1568 | -10/Materials | Repaired Lgt. Treads? 1849 | -10/Materials | Entered Mines 1963 | -10/Mines | Lost 3 parts (1p2w) 2541 | -10/Mines | Found a hidden stash of uninstalled traps 2669 | -10/Mines | Learned Materials interactive machine intel 2688 | -10/Mines | Discovered new exit (range 5) 2693 | -10/Mines | Assisted by bots powering up and referring to "LRC-V3" 2904 | -10/Mines | Discovered new exit (range 9) 3427 | -10/Mines | Received a Rocket Launcher from a helpful Derelict 3534 | -10/Mines | Deemed a non-threat by the Exiles lab entrance 3534 | -10/Mines | Discovered new exit (range 5) 3546 | -10/Mines | Entered Exiles 3546 | -10/Exiles | Accompanied by 2 allies 3547 | -10/Exiles | Identified exit to Mines 3604 | -10/Exiles | Met 8R-AWN 3645 | -10/Exiles | Met EX-HEX 3726 | -10/Exiles | Met EX-BIN 3802 | -10/Exiles | Met EX-DEC 3814 | -10/Exiles | Learned location of Zion (-6) 4092 | -10/Exiles | Entered Mines 4092 | -9/Mines | Accompanied by 2 allies 4098 | -9/Mines | Received a Mining Laser from a helpful Derelict 4131 | -9/Mines | Met a Derelict bent on vengeance 4216 | -9/Mines | Discovered new exit (range 5) 4293 | -9/Mines | Learned Materials garrison access intel 4325 | -9/Mines | Assembled infested the area 4353 | -9/Mines | Core integrity fell below 50% 4365 | -9/Mines | Core integrity fell below 20% 4366 | -9/Mines | Destroyed by D-53 Grenadier with Mini Grenade Launcher Last Messages --------------- 04352_ as-00115 destroyed. 04354_ Trooper 1a destroyed. 04355_ as-28025 destroyed. 04356_ as-23630 destroyed. 04356_ as-88018 destroyed. 04356_ as-01190 destroyed. 04356_ Imp. Light Cannon destroyed. 04357_ as-74991 destroyed. 04357_ as-77931 destroyed. 04358_ T-07 Excavator destroyed. 04359_ The unstable cave ceiling collapses. 04359_ K-01 Serf collects debris. 04359_ Propulsion Shielding destroyed. 04359_ D-53 Grenadier destroyed. 04361_ The unstable cave ceiling collapses. 04361_ Lgt. Treads destroyed. 04362_ The unstable cave ceiling collapses. 04362_ Lgt. Treads destroyed. 04362_ Sml. Laser destroyed. 04363_ K-01 Serf collects debris. Map ----- +----------------------------------------------------+ | #?????????????????????????????????????????????? | | ####??????????????????????????????????????????? | | ## ##?####??????????????????#?????????????????? | | ### ##????????????????# ?????????????????? | | #???????????????? ????????????????? | | ## """ #?####??????????# ?????????????????? | | ?## """ #### ##????????? ?????????????????? | | ??# """ ##?# #???????## ??????????????????? | | ??## #### #???????# ??????????????????? | | ???## ## #??????##| #??????????????????? | | ????## #?####?## %#??????????????????? | | ????# ##?# ## a #??????????????????? | | ????# # #???? % #??????????????????? | | ????# ######## #?????# [a #???###????????????? | | ????# #??????# #?????# = % #??# ##???????????? | | ##### ####???# #?????# *%%= ### #???????????? | | #???# #?????# # #???????????? | | ! #???# ####### #????????????? | | !! ## #???# ##????????????? | | ! ## #???# ##?????????????? | | ! ## ##??######## ##??????????????? | | ##???????## ##???????????????? | | ## #???????# #????????????????? | | # #???????# ##????????????????? | | # ## ##??????## a ##?????????????????? | | ## #### ##?????# d@ #??????????????????? | | ?######?## #?????# #??????????????????? | | ????????# #?????# k #??????????????????? | | ???????# ##???? % ##??????????????????? | | ???????# ##??? ##???????????????????? | | ???????# < #?? #########????????????????????? | | ???????## #?# ?????????????????????????????? | | ????????# ##?# ??????????????????????????????? | | ????????####??# ???????????????????????????????? | | ?????????????# ????????????????????????????????? | | ?????????????? ?????????????????????????????????? | | ?????????????????????????????????????????????????? | | ?????????????????????????????????????????????????? | | ?????????????????????????????????????????????????? | | ?????????????????????????????????????????????????? | | ?????????????????????????????????????????????????? | | ?????????????????????????????????????????????????? | | ?????????????????????????????????????????????????? | | ?????????????????????????????????????????????????? | | ?????????????????????????????????????????????????? | | ?????????????????????????????????????????????????? | | ?????????????????????????????????????????????????? | | ?????????????????????????????????????????????????? | | ?????????????????????????????????????????????????? | | ?????????????????????????????????????????????????? | +----------------------------------------------------+ Best States ------------- Heat Dissipation 25 Energy Generation 10 Energy Capacity 250 Matter Stores 300 Matter Capacity 300 Sight Range 16 Terrain Scan Density 10 Propulsion Shielding 33 Evasion (%) 40 Recoil Reduction 2 Item Schematics ----------------- Huge Storage Unit | -10/Materials | Hacked Robot Schematics ------------------ None Fabricated ------------ Nothing Alien Tech Used ----------------- None Achievements -------------- None Challenges ------------ None Game ------ Seed DiametricThermicMace Manual? 0 Play Time 00:17:02 Cumulative 314.3 hours Start 2022.07.04 @ 06:01:33 End 2022.07.04 @ 06:17:04 Sessions 1 Manual Loads 0 Difficulty Rogue Special Mode None Game No. 143 Rogue 143 Adventurer 0 Explorer 0 Win Type - Total 8 Types 5/0/1/1/0/0/0/1/0 Lore% 88 Gallery% 90 Achievement% 70 Wizard Run 0 Options --------- ASCII 1 Keyboard 1 Movement Vi Keybinds 0 Fullscreen 2 Font 18/Cog Map View 76x50 Tactical HUD 1 Map Filters NONE Filters NONE Steam 0 RUN: e24c1c6d-1049-450e-808c-683c7b4c7399